bitfinex/quotes_BTCUSD_20241206
["timestamp","ask_amount","ask_price","bid_price","bid_amount"]
[1733447745673,0.11461798,97296.0,97284.0,0.05]
[1733447745878,0.023,97297.0,97284.0,0.05]
[1733447746284,0.023,97300.0,97283.0,0.05]
[1733447746538,0.02317528,97301.0,97283.0,0.05]
[1733447747200,0.024,97299.0,97283.0,0.05]
[1733447747406,0.001,97299.0,97283.0,0.05]
[1733447748686,0.09161798,97296.0,97283.0,0.05]
[1733447748804,0.11461798,97296.0,97283.0,0.05]
[1733447749682,0.09161798,97295.0,97283.0,0.05]
[1733447749885,0.024,97299.0,97283.0,0.05]
[1733447750041,0.023,97296.0,97283.0,0.05]
[1733447750236,0.09161798,97294.0,97283.0,0.05]
[1733447750434,0.023,97296.0,97283.0,0.05]
[1733447750786,0.023,97298.0,97283.0,0.05]
[1733447751357,0.023,97295.0,97283.0,0.05]
[1733447751585,0.11187778,97295.0,97283.0,0.05]
[1733447751836,0.023,97298.0,97283.0,0.05]
[1733447752170,0.023,97296.0,97280.0,0.001729]
[1733447752452,0.023,97293.0,97280.0,0.001729]
[1733447752669,0.16054675,97293.0,97280.0,0.001729]
[1733447752794,0.023,97291.0,97280.0,0.001729]
[1733447753195,0.023,97294.0,97280.0,0.001729]
[1733447755089,0.13756622,97296.0,97287.0,0.0793]
[1733447755211,0.13756622,97298.0,97297.0,0.05]
[1733447755407,0.001,97299.0,97298.0,0.05]
[1733447758281,0.001,97299.0,97297.0,0.01299794]
[1733447758449,0.33953458,97298.0,97296.0,50.0]
[1733447758649,0.33953458,97297.0,97296.0,50.0]
[1733447758978,0.001,97299.0,97298.0,0.1]
[1733447759151,0.001,97299.0,97298.0,0.1793]
[1733447760709,0.001,97299.0,97298.0,0.28535924]
[1733447760880,0.001,97299.0,97298.0,0.33273154]
[1733447761309,0.001,97299.0,97298.0,0.34525695]
[1733447762207,0.001,97299.0,97298.0,0.19022541]
[1733447762368,0.001,97299.0,97298.0,0.19182541]
[1733447764147,0.001,97299.0,97298.0,0.1793]
[1733447764549,0.001,97299.0,97298.0,0.1]
[1733447764917,0.001,97299.0,97297.0,0.05]
[1733447765131,0.001,97299.0,97296.0,49.48697277]
[1733447765333,0.024,97299.0,97296.0,49.48697277]
[1733447765481,0.11595555,97299.0,97296.0,49.48697277]
[1733447765693,0.09195555,97297.0,97296.0,49.48697277]
[1733447765889,0.09195555,97298.0,97296.0,49.48697277]
[1733447766094,0.11595555,97299.0,97296.0,49.48697277]
[1733447766557,0.09295555,97299.0,97298.0,0.05]
[1733447766703,0.001,97299.0,97298.0,0.05]
[1733447766924,0.001,97299.0,97296.0,49.48697277]
[1733447766925,0.001,97299.0,97297.0,0.05]
[1733447767530,0.001,97299.0,97296.0,49.48697277]
[1733447767902,0.001,97299.0,97296.0,49.49973717]
[1733447768104,0.001,97299.0,97296.0,49.48697277]
[1733447768926,0.13897308,97299.0,97296.0,49.48697277]
[1733447769127,0.13797308,97298.0,97296.0,49.48697277]
[1733447769499,0.13797308,97297.0,97296.0,49.48697277]
[1733447769733,0.33960103,97297.0,97296.0,49.48697277]
[1733447769912,0.56955617,97297.0,97296.0,49.48697277]
[1733447770275,0.33960103,97297.0,97296.0,49.48697277]
[1733447770701,0.56955617,97297.0,97296.0,49.48697277]
[1733447771047,0.59255617,97297.0,97296.0,49.48697277]
[1733447771278,0.46763257,97297.0,97296.0,49.48697277]
[1733447771709,0.46763257,97297.0,97296.0,48.9738263]
[1733447772125,0.35807174,97297.0,97296.0,48.9738263]
[1733447772333,0.37105257,97297.0,97296.0,48.9738263]
[1733447772572,0.48064843,97297.0,97296.0,48.9738263]
[1733447773417,0.60604843,97297.0,97296.0,48.8457263]
[1733447773629,0.48064843,97297.0,97296.0,45.59885086]
[1733447773851,0.48064843,97297.0,97296.0,44.76481167]
[1733447774082,0.48064843,97297.0,97296.0,44.7509344]
[1733447774503,0.48064843,97297.0,97296.0,44.7249344]
[1733447775356,0.50509213,97297.0,97296.0,44.7249344]
[1733447775559,0.50509213,97297.0,97296.0,44.71704311]
[1733447775766,0.50509213,97297.0,97296.0,44.15240605]
[1733447775966,0.48374255,97297.0,97296.0,44.15240605]
[1733447776410,0.5599007,97297.0,97296.0,44.11851798]
[1733447776634,0.48374255,97297.0,97296.0,44.11851798]
[1733447776831,0.51563869,97297.0,97296.0,44.07785213]
[1733447777058,0.51563869,97297.0,97296.0,44.05651329]
[1733447777498,0.51563869,97297.0,97296.0,44.04894652]
[1733447777725,0.51563869,97297.0,97296.0,44.0421201]
[1733447777973,0.59845902,97297.0,97296.0,43.05653562]
[1733447778311,0.54037139,97297.0,97296.0,42.79503754]
[1733447778514,0.54037139,97297.0,97296.0,42.76933933]
[1733447778634,0.54037139,97297.0,97296.0,42.74622347]
[1733447778839,1.29332739,97297.0,97296.0,41.92981055]
[1733447779042,1.29332739,97297.0,97296.0,41.60161134]
[1733447779043,1.46332499,97297.0,97296.0,41.60161134]
[1733447779295,1.46332499,97297.0,97296.0,40.71138771]
[1733447779531,1.48842514,97297.0,97296.0,40.45675616]
[1733447779740,1.48842514,97297.0,97296.0,39.87843621]
[1733447779968,1.88081699,97297.0,97296.0,38.41284346]
[1733447780198,1.57112499,97297.0,97296.0,38.40051944]
[1733447780448,2.04661548,97297.0,97296.0,38.34449853]
[1733447780677,1.57112499,97297.0,97296.0,38.27480148]
[1733447780892,1.57112499,97297.0,97296.0,38.10183642]
[1733447781123,1.57712499,97297.0,97296.0,38.07201599]
[1733447781360,2.07649231,97297.0,97296.0,38.07201599]
[1733447781568,2.07049231,97297.0,97296.0,37.69034861]
[1733447782018,2.09949231,97297.0,97296.0,37.58863882]
[1733447782428,2.09949231,97297.0,97296.0,37.57835519]
[1733447782629,2.09949231,97297.0,97296.0,37.57522966]
[1733447782872,2.10849231,97297.0,97296.0,37.57109201]
[1733447783102,2.10849231,97297.0,97296.0,37.57009201]
[1733447783103,1.87003385,97297.0,97296.0,37.57009201]
[1733447783313,1.38554336,97297.0,97296.0,37.56292683]
[1733447783526,1.38554336,97297.0,97296.0,37.56024683]
[1733447783527,1.39154336,97297.0,97296.0,37.56024683]
[1733447783746,1.50543828,97297.0,97296.0,37.54072683]
[1733447783950,1.49943828,97297.0,97296.0,37.53972683]
[1733447784212,1.49943828,97297.0,97296.0,37.48837154]
[1733447784423,1.49943828,97297.0,97296.0,37.34214706]
[1733447784424,1.50543828,97297.0,97296.0,37.34214706]
[1733447784637,1.50543828,97297.0,97296.0,36.68056748]
[1733447784842,1.61323828,97297.0,97296.0,36.51605078]
[1733447784985,1.63905088,97297.0,97296.0,36.50689097]
[1733447785197,2.11454137,97297.0,97296.0,36.50689097]
[1733447785392,2.11454137,97297.0,97296.0,36.3969299]
[1733447785633,2.00674137,97297.0,97296.0,36.39174726]
[1733447785843,1.89657385,97297.0,97296.0,36.37124726]
[1733447786048,1.4190379,97297.0,97296.0,35.84375372]
[1733447786464,1.52393282,97297.0,97296.0,35.78659211]
[1733447786678,1.99041327,97297.0,97296.0,35.74493027]
[1733447786883,1.52193282,97297.0,97296.0,35.74493027]
[1733447787084,1.52193282,97297.0,97296.0,35.73105135]
[1733447787257,1.4080379,97297.0,97296.0,35.73005135]
[1733447787459,1.34329577,97297.0,97296.0,35.73005135]
[1733447787662,1.37988395,97297.0,97296.0,35.12243726]
[1733447788273,1.38488395,97297.0,97296.0,35.12243726]
[1733447788498,1.7182355,97297.0,97296.0,35.07108211]
[1733447788695,1.47993562,97297.0,97296.0,35.07108211]
[1733447789041,1.48893562,97297.0,97296.0,35.07108211]
[1733447789573,1.49293562,97297.0,97296.0,35.06369148]
[1733447789840,1.47493562,97297.0,97296.0,35.06369148]
[1733447790198,1.47093562,97297.0,97296.0,35.06369148]
[1733447790603,1.47093562,97297.0,97296.0,35.01233633]
[1733447790604,1.47053833,97297.0,97296.0,35.01233633]
[1733447791020,0.72048741,97297.0,97296.0,35.01233633]
[1733447791218,0.67720248,97297.0,97296.0,35.01233633]
[1733447791775,0.71121659,97297.0,97296.0,34.49891284]
[1733447792069,0.51100938,97297.0,97296.0,34.49891284]
[1733447792278,0.4789182,97297.0,97296.0,34.43297146]
[1733447792905,0.81256369,97297.0,97296.0,34.38161631]
[1733447793105,0.81256369,97297.0,97296.0,34.36551031]
[1733447793106,0.81456369,97297.0,97296.0,34.36551031]
[1733447793298,0.4789182,97297.0,97296.0,34.36551031]
[1733447793502,0.81335593,97297.0,97296.0,34.36551031]
[1733447793655,0.4799182,97297.0,97296.0,34.36551031]
[1733447793857,0.81335448,97297.0,97296.0,34.28896531]
[1733447794067,0.81235448,97297.0,97296.0,34.25915531]
[1733447794337,0.81435448,97297.0,97296.0,34.25915531]
[1733447794547,0.81435448,97297.0,97296.0,34.21075831]
[1733447794700,0.81735448,97297.0,97296.0,34.21075831]
[1733447795061,0.81735448,97297.0,97296.0,34.15941181]
[1733447795272,0.85208224,97297.0,97296.0,33.92777912]
[1733447796491,0.85208224,97297.0,97296.0,33.90663912]
[1733447797114,0.85208224,97297.0,97296.0,33.59650042]
[1733447797338,0.85208224,97297.0,97296.0,33.57183321]
[1733447798013,0.85208224,97297.0,97296.0,33.55072321]
[1733447798014,0.84708224,97297.0,97296.0,33.55072321]
[1733447798222,0.84708224,97297.0,97296.0,33.52625121]
[1733447798429,0.84708224,97297.0,97296.0,33.50225121]
[1733447798899,0.10503154,97297.0,97296.0,33.63065121]
[1733447799100,0.10803154,97297.0,97296.0,33.63065121]
[1733447799366,0.12059258,97297.0,97296.0,33.63065121]
[1733447799565,0.10803154,97297.0,97296.0,33.63065121]
[1733447799985,0.10603154,97297.0,97296.0,33.63065121]
[1733447800506,0.10503154,97297.0,97296.0,33.63065121]
[1733447800914,0.10503154,97297.0,97296.0,33.63165121]
[1733447801495,0.10503154,97297.0,97296.0,33.63065121]
[1733447801621,0.10503154,97297.0,97296.0,33.63165121]
[1733447802335,0.10503154,97297.0,97296.0,33.54062679]
[1733447802336,0.11705057,97297.0,97296.0,33.54062679]
[1733447802539,0.10503154,97297.0,97296.0,33.25851937]
[1733447804061,0.10503154,97297.0,97296.0,33.25751937]
[1733447804469,0.10503154,97297.0,97296.0,33.25851937]
[1733447806225,0.10503154,97297.0,97296.0,33.25751937]
[1733447806442,0.10503154,97297.0,97296.0,33.25851937]
[1733447808072,0.13694332,97297.0,97296.0,33.25851937]
[1733447808277,0.27382188,97297.0,97296.0,33.25851937]
[1733447809062,0.13694332,97297.0,97296.0,33.25851937]
[1733447809499,0.27423011,97297.0,97296.0,33.25851937]
[1733447809713,0.10503154,97297.0,97296.0,33.25851937]
[1733447809895,0.19655285,97297.0,97296.0,33.25851937]
[1733447810100,0.10503154,97297.0,97296.0,32.74424993]
[1733447810556,0.10503154,97297.0,97296.0,32.74524993]
[1733447810926,0.10503154,97297.0,97296.0,32.74424993]
[1733447811160,0.10503154,97297.0,97296.0,32.86864993]
[1733447811388,0.0008649,97300.0,97296.0,32.86864993]
[1733447811389,0.0008649,97300.0,97296.0,32.86964993]
[1733447811560,0.1383533,97319.0,97297.0,0.0766]
[1733447811712,0.10493355,97309.0,97299.0,0.0766]
[1733447811920,0.00105842,97309.0,97301.0,0.0766]
[1733447812123,0.00105842,97309.0,97303.0,0.0766]
[1733447812323,0.00105842,97309.0,97304.0,0.0478]
[1733447812614,0.001,97319.0,97305.0,0.05]
[1733447812806,0.001,97319.0,97306.0,0.0766]
[1733447812807,0.1039099,97318.0,97306.0,0.0766]
[1733447813218,0.1039099,97318.0,97306.0,0.07665842]
[1733447814414,0.1039099,97318.0,97306.0,0.07765842]
[1733447814786,0.1039099,97318.0,97306.0,0.07865842]
[1733447818706,0.001,97319.0,97306.0,0.07865842]
[1733447818707,0.10503154,97317.0,97306.0,0.07865842]
[1733447818909,0.001,97319.0,97306.0,0.07865842]
[1733447818910,0.10503154,97316.0,97306.0,0.07865842]
[1733447819112,0.24245399,97316.0,97306.0,0.07865842]
[1733447819318,0.10503154,97309.0,97306.0,0.07865842]
[1733447819646,0.13742245,97308.0,97306.0,0.07865842]
[1733447819867,0.10503154,97307.0,97306.0,0.07765842]
[1733447820096,0.24245399,97307.0,97306.0,0.07765842]
[1733447820310,0.10503154,97307.0,97306.0,0.07765842]
[1733447820486,0.44322654,97307.0,97306.0,0.07765842]
[1733447820718,0.44322654,97307.0,97306.0,0.07865842]
[1733447821257,0.33402805,97307.0,97296.0,32.74424993]
[1733447821460,0.09159803,97297.0,97296.0,32.74424993]
[1733447821662,0.19662957,97297.0,97296.0,32.74424993]
[1733447821870,0.10403154,97297.0,97296.0,32.74424993]
[1733447822071,0.19562106,97297.0,97296.0,32.74424993]
[1733447822280,0.10403154,97297.0,97296.0,32.74424993]
[1733447822691,0.10403154,97297.0,97296.0,32.74524993]
[1733447823007,0.62535604,97297.0,97296.0,32.74524993]
[1733447823224,0.44216018,97297.0,97296.0,32.74524993]
[1733447823374,0.10403154,97297.0,97296.0,32.74624993]
[1733447823576,0.12703154,97297.0,97296.0,32.74524993]
[1733447823974,0.46516018,97297.0,97296.0,32.74624993]
[1733447824179,0.12703154,97297.0,97296.0,32.74624993]
[1733447824601,0.46513016,97297.0,97296.0,32.74524993]
[1733447824802,0.46513016,97297.0,97296.0,32.74424993]
[1733447825015,0.64832382,97297.0,97296.0,32.23199322]
[1733447825335,0.12703154,97297.0,97296.0,32.23199322]
[1733447826117,0.46519379,97297.0,97296.0,32.23099322]
[1733447826543,0.46519379,97297.0,97296.0,32.23199322]
[1733447827362,0.46519379,97297.0,97296.0,32.23299322]
[1733447827543,0.46519379,97297.0,97296.0,32.23199322]
[1733447827917,0.46519379,97297.0,97296.0,32.23099322]
[1733447828125,0.46519379,97297.0,97296.0,32.23199322]
[1733447828879,0.46519379,97297.0,97296.0,32.23099322]
[1733447829054,0.46519379,97297.0,97296.0,32.23199322]
[1733447829253,0.64842929,97297.0,97296.0,32.23199322]
[1733447829454,0.46519379,97297.0,97296.0,32.23199322]
[1733447829799,0.64842929,97297.0,97296.0,32.23199322]
[1733447830079,0.12703154,97297.0,97296.0,32.23199322]
[1733447830305,0.21868306,97297.0,97296.0,32.23199322]
[1733447830505,0.12703154,97297.0,97296.0,32.23199322]
[1733447830661,0.10403154,97297.0,97296.0,32.23199322]
[1733447830863,0.10403154,97297.0,97296.0,32.23099322]
[1733447831076,0.10403154,97297.0,97296.0,32.23199322]
[1733447831251,0.10403154,97297.0,97296.0,32.23299322]
[1733447831599,0.10403154,97297.0,97296.0,32.23099322]
[1733447832146,0.10403154,97297.0,97296.0,32.23199322]
[1733447832314,0.10403154,97297.0,97296.0,32.23299322]
[1733447833199,0.10403154,97297.0,97296.0,32.23199322]
[1733447833416,0.10403154,97297.0,97296.0,32.23099322]
[1733447833779,0.10403154,97297.0,97296.0,32.23199322]
[1733447834995,0.10403154,97297.0,97296.0,32.23299322]
[1733447835201,0.19568306,97297.0,97296.0,32.23299322]
[1733447836303,0.10403154,97297.0,97296.0,32.23299322]
[1733447836462,0.14509954,97297.0,97296.0,32.23299322]
[1733447838077,0.28257092,97297.0,97296.0,32.23299322]
[1733447839239,0.48382041,97297.0,97296.0,32.23299322]
[1733447840230,0.14509954,97297.0,97296.0,31.71979628]
[1733447841173,0.16809954,97297.0,97296.0,31.71979628]
[1733447841800,0.50706456,97297.0,97296.0,31.71979628]
[1733447842249,0.73606107,97297.0,97296.0,31.71879628]
[1733447842575,0.50706456,97297.0,97296.0,31.71979628]
[1733447842707,0.50706456,97297.0,97296.0,31.71879628]
[1733447843526,0.51738506,97297.0,97296.0,31.71879628]
[1733447844633,0.54989033,97297.0,97296.0,31.71879628]
[1733447844819,0.51794093,97297.0,97296.0,31.71879628]
[1733447845883,0.54988776,97297.0,97296.0,31.71779628]
[1733447846090,0.51794093,97297.0,97296.0,31.71779628]
[1733447846318,0.54988592,97297.0,97296.0,31.71879628]
[1733447846518,0.51794093,97297.0,97296.0,31.71879628]
[1733447847082,0.51794093,97297.0,97296.0,31.71779628]
[1733447847280,0.51794093,97297.0,97296.0,31.71879628]
[1733447849319,0.49494093,97297.0,97296.0,31.71879628]
[1733447850202,0.49494093,97297.0,97296.0,31.20453387]
[1733447850709,0.49494093,97297.0,97296.0,31.20553387]
[1733447850941,0.51794093,97297.0,97296.0,31.20453387]
[1733447851148,0.51794093,97297.0,97296.0,31.20553387]
[1733447851332,0.52099423,97297.0,97296.0,31.20553387]
[1733447852699,0.52074823,97297.0,97296.0,31.20553387]
[1733447854605,0.37482242,97297.0,97296.0,31.25143387]
[1733447854802,0.52348951,97297.0,97296.0,31.37713387]
[1733447855007,0.33952089,97297.0,97296.0,31.35143387]
[1733447855201,0.22996888,97308.0,97299.0,0.05]
[1733447855432,0.0008649,97300.0,97299.0,0.05]
[1733447855632,0.0008649,97300.0,97299.0,0.1257]
[1733447856364,0.0008649,97300.0,97299.0,0.1267]
[1733447857125,0.0008649,97300.0,97299.0,0.1277]
[1733447868251,0.09196859,97309.0,97308.0,0.05]
[1733447868427,0.00510141,97310.0,97299.0,0.0777]
[1733447868428,0.14305429,97310.0,97309.0,0.05]
[1733447868648,0.24808583,97310.0,97309.0,0.05]
[1733447868871,0.24814587,97310.0,97309.0,0.05]
[1733447869290,0.11019299,97310.0,97309.0,0.05]
[1733447870107,0.11019299,97310.0,97309.0,0.051]
[1733447870477,0.11019299,97310.0,97309.0,0.05]
[1733447871756,0.00516145,97310.0,97309.0,0.05]
[1733447871959,0.09193471,97310.0,97309.0,0.05]
[1733447872163,6.004e-05,97310.0,97309.0,0.051]
[1733447872812,6.004e-05,97310.0,97309.0,0.05]
[1733447873327,6.004e-05,97310.0,97309.0,0.051]
[1733447873552,0.09193471,97310.0,97309.0,0.051]
[1733447873803,6.004e-05,97310.0,97309.0,0.051]
[1733447874795,6.004e-05,97310.0,97309.0,0.001]
[1733447875018,6.004e-05,97310.0,97309.0,0.051]
[1733447875281,0.13788432,97310.0,97309.0,0.051]
[1733447875489,6.004e-05,97310.0,97309.0,0.051]
[1733447875692,0.10509158,97310.0,97309.0,0.051]
[1733447875909,0.28885729,97310.0,97299.0,0.0757]
[1733447876217,0.09188222,97305.0,97299.0,0.0757]
[1733447876419,0.10503154,97305.0,97299.0,0.0757]
[1733447878137,0.10503154,97305.0,97296.0,31.20453387]
[1733447878339,0.11487955,97303.0,97296.0,31.20453387]
[1733447878536,0.09187955,97300.0,97296.0,31.20453387]
[1733447878767,0.10503154,97299.0,97296.0,31.20453387]
[1733447880520,0.19691109,97299.0,97296.0,31.20453387]
[1733447881217,0.10503154,97299.0,97296.0,31.20453387]
[1733447881636,0.19690404,97299.0,97296.0,31.20453387]
[1733447882068,0.0918725,97298.0,97296.0,31.20453387]
[1733447882286,0.10503154,97297.0,97296.0,31.20453387]
[1733447882735,0.19690404,97297.0,97296.0,31.20453387]
[1733447883206,0.10503154,97297.0,97296.0,31.20453387]
[1733447883415,0.2428403,97297.0,97296.0,31.20453387]
[1733447883618,0.65094058,97297.0,97296.0,31.20453387]
[1733447883854,0.46719557,97297.0,97296.0,31.20453387]
[1733447884076,0.69687684,97297.0,97296.0,31.20453387]
[1733447884314,0.46457557,97297.0,97296.0,31.20453387]
[1733447884526,0.69425684,97297.0,97296.0,31.20453387]
[1733447884940,0.46457557,97297.0,97296.0,31.20453387]
[1733447885865,0.12541154,97297.0,97296.0,30.69132478]
[1733447886298,0.46462944,97297.0,97296.0,30.69132478]
[1733447886961,0.30920138,97297.0,97296.0,30.69132478]
[1733447887192,0.44162944,97297.0,97296.0,30.69132478]
[1733447887411,0.19429266,97297.0,97296.0,30.69132478]
[1733447887629,0.09188112,97304.0,97296.0,30.69132478]
[1733447887822,0.10503154,97303.0,97296.0,30.69132478]
[1733447888076,0.09188112,97302.0,97296.0,30.69132478]
[1733447888245,0.10503154,97301.0,97296.0,30.69132478]
[1733447888484,0.09188112,97300.0,97296.0,30.69132478]
[1733447888687,0.10503154,97301.0,97296.0,30.69132478]
[1733447888688,0.24286232,97299.0,97296.0,30.69132478]
[1733447888843,0.1837905,97297.0,97296.0,30.69132478]
[1733447889004,0.46725278,97297.0,97296.0,30.69132478]
[1733447890021,0.31184792,97297.0,97296.0,30.69132478]
[1733447890260,0.46725278,97297.0,97296.0,30.69132478]
[1733447890487,0.26590594,97297.0,97296.0,30.69132478]
[1733447890708,0.12803154,97297.0,97296.0,30.69132478]
[1733447891135,0.31184792,97297.0,97296.0,30.69132478]
[1733447891344,0.13850265,97297.0,97296.0,30.69132478]
[1733447891801,0.13876001,97300.0,97296.0,30.69132478]
[1733447892013,0.09279083,97300.0,97299.0,0.05]
[1733447892229,0.0008648,97300.0,97299.0,0.05]
[1733447892437,0.0008648,97300.0,97297.0,0.082]
[1733447892438,0.0008648,97300.0,97298.0,0.05]
[1733447895274,0.0008648,97300.0,97299.0,0.05]
[1733447896387,0.0008648,97300.0,97297.0,0.082]
[1733447896636,0.0008648,97300.0,97296.0,30.73682478]
[1733447896637,0.023,97298.0,97296.0,30.69132478]
[1733447896853,0.12803154,97297.0,97296.0,30.59397707]
[1733447897110,0.46767609,97297.0,97296.0,30.59397707]
[1733447899279,0.74335794,97297.0,97296.0,30.59397707]
[1733447899861,0.74415966,97297.0,97296.0,30.59397707]
[1733447900288,0.7442275,97297.0,97296.0,30.59397707]
[1733447900912,0.10503154,97297.0,97296.0,30.59397707]
[1733447902201,0.44496182,97297.0,97296.0,30.59397707]
[1733447902842,0.46796182,97297.0,97296.0,30.59397707]
[1733447906029,0.74422262,97297.0,97296.0,30.59397707]
[1733447906244,0.46796182,97297.0,97296.0,30.59397707]
[1733447906444,0.74422262,97297.0,97296.0,30.59397707]
[1733447906734,0.49993993,97297.0,97296.0,30.08077265]
[1733447906935,0.46796182,97297.0,97296.0,30.08077265]
[1733447909640,0.4679418,97297.0,97296.0,30.08077265]
[1733447910260,0.47805793,97297.0,97296.0,30.08077265]
[1733447916857,0.47805793,97297.0,97296.0,29.56754331]
[1733447919226,0.47812525,97297.0,97296.0,29.56754331]
[1733447919889,0.52442525,97297.0,97296.0,29.56754331]
[1733447920969,0.52442525,97297.0,97296.0,29.51621878]
[1733447921174,0.80072449,97297.0,97296.0,29.51621878]
[1733447921345,0.52442525,97297.0,97296.0,29.51621878]
[1733447921578,0.51430912,97297.0,97296.0,29.51621878]
[1733447922171,0.54629886,97297.0,97296.0,29.51621878]
[1733447922512,0.65409886,97297.0,97296.0,29.51621878]
[1733447923414,0.64909886,97297.0,97296.0,29.51621878]
[1733447923614,0.85697717,97297.0,97296.0,29.49221878]
[1733447924211,0.85697717,97297.0,97296.0,28.97888977]
[1733447925389,0.85697717,97297.0,97296.0,28.92756524]
[1733447926043,0.85697717,97297.0,97296.0,28.9244848]
[1733447926475,0.81023961,97297.0,97296.0,28.92060214]
[1733447926682,0.78704913,97297.0,97296.0,28.92060214]
[1733447926886,0.77699886,97297.0,97296.0,28.92060214]
[1733447927568,0.77699886,97297.0,97296.0,28.8692696]
[1733447927772,0.88500576,97297.0,97296.0,28.8692696]
[1733447927976,0.81335159,97297.0,97296.0,28.8692696]
[1733447928143,0.78011084,97297.0,97296.0,28.8692696]
[1733447928589,0.77699886,97297.0,97296.0,28.85317525]
[1733447928789,0.91331285,97297.0,97296.0,28.85317525]
[1733447928987,0.80841793,97297.0,97296.0,28.85317525]
[1733447929539,1.11879698,97297.0,97296.0,28.85317525]
[1733447930350,0.80841793,97297.0,97296.0,28.85317525]
[1733447930596,1.11873589,97297.0,97296.0,28.83983557]
[1733447931512,0.91331285,97297.0,97296.0,28.83983557]
[1733447931713,0.91331285,97297.0,97296.0,28.83129509]
[1733447931887,0.91331285,97297.0,97296.0,28.31787474]
[1733447932092,1.46071285,97297.0,97296.0,28.31787474]
[1733447932522,1.46071285,97297.0,97296.0,28.31211194]
[1733447932936,1.93668146,97297.0,97296.0,28.17560027]
[1733447933147,1.93668146,97297.0,97296.0,28.15452262]
[1733447933514,1.48421863,97297.0,97296.0,27.8322807]
[1733447933735,1.48955302,97297.0,97296.0,27.8322807]
[1733447934120,1.48955302,97297.0,97296.0,27.63612161]
[1733447935534,1.97618388,97297.0,97296.0,27.63612161]
[1733447935888,1.97618388,97297.0,97296.0,27.63273453]
[1733447936089,2.28613808,97297.0,97296.0,27.63273453]
[1733447936499,1.97618388,97297.0,97296.0,27.63273453]
[1733447936713,1.50021527,97297.0,97296.0,27.63273453]
[1733447937117,1.97618388,97297.0,97296.0,27.63273453]
[1733447937541,1.68161604,97297.0,97296.0,27.63273453]
[1733447938202,1.84778318,97297.0,97296.0,27.63273453]
[1733447938420,1.68161482,97297.0,97296.0,27.63273453]
[1733447938811,1.68161482,97297.0,97296.0,27.62248446]
[1733447938972,1.84978318,97297.0,97296.0,27.61991696]
[1733447939675,1.85078318,97297.0,97296.0,27.61217436]
[1733447940127,1.84978318,97297.0,97296.0,27.61217436]
[1733447940328,1.37381457,97297.0,97296.0,27.61217436]
[1733447940527,1.68361482,97297.0,97296.0,27.60437672]
[1733447940733,1.78850974,97297.0,97296.0,27.60437672]
[1733447940935,1.78650974,97297.0,97296.0,27.60437672]
[1733447941674,1.9526781,97297.0,97296.0,27.59951818]
[1733447941895,2.26256029,97297.0,97296.0,27.08605386]
[1733447942103,1.9526781,97297.0,97296.0,27.08058196]
[1733447942222,1.47670949,97297.0,97296.0,27.08058196]
[1733447942670,1.78656871,97297.0,97296.0,27.08058196]
[1733447942882,1.47670949,97297.0,97296.0,27.08058196]
[1733447943080,1.78656871,97297.0,97296.0,27.08058196]
[1733447943532,1.87128896,97297.0,97296.0,27.08058196]
[1733447943739,1.37181457,97297.0,97296.0,27.08058196]
[1733447944162,1.37181457,97297.0,97296.0,26.5671084]
[1733447945340,1.3403955,97297.0,97296.0,26.5671084]
[1733447945737,1.37691261,97297.0,97296.0,26.5671084]
[1733447947021,1.37691261,97297.0,97296.0,26.54272289]
[1733447947405,1.37691261,97297.0,97296.0,26.50343098]
[1733447949698,1.66916411,97297.0,97296.0,26.50343098]
[1733447949879,1.66382972,97297.0,97296.0,26.50343098]
[1733447950101,1.4998139,97297.0,97296.0,26.50343098]
[1733447950322,1.18786111,97297.0,97296.0,26.50343098]
[1733447951009,1.29275603,97297.0,97296.0,26.50343098]
[1733447951212,1.21086111,97297.0,97296.0,26.50343098]
[1733447951445,1.03006111,97297.0,97296.0,26.50343098]
[1733447952663,0.47199886,97297.0,97296.0,26.50343098]
[1733447952869,0.44000912,97297.0,97296.0,26.50343098]
[1733447953074,0.62841488,97297.0,97296.0,26.50343098]
[1733447953483,0.24251756,97297.0,97296.0,26.50343098]
[1733447953695,0.10478254,97297.0,97296.0,26.50343098]
[1733447953902,0.10478254,97297.0,97296.0,26.63003098]
[1733447955895,0.004751,97297.0,97296.0,26.63003098]
[1733447956094,0.1008648,97300.0,97299.0,0.1285]
[1733447957698,0.00092484,97310.0,97299.0,0.1285]
[1733447957929,0.10503154,97308.0,97300.0,0.0806]
[1733447964471,0.00092484,97310.0,97302.0,0.1297]
[1733447964677,0.00092484,97310.0,97301.0,0.05]
[1733447964678,0.001,97319.0,97318.0,0.05]
[1733447964843,0.001,97319.0,97318.0,0.1535]
[1733447967007,0.001,97329.0,97328.0,0.1516]
[1733447967231,0.001,97329.0,97328.0,0.15262734]
[1733447969782,0.10603154,97329.0,97328.0,0.0545]
[1733447970004,0.10603154,97329.0,97319.0,0.1306]
[1733447970445,0.10503154,97328.0,97319.0,0.08066004]
[1733447971435,0.10503154,97328.0,97319.0,0.05]
[1733447971861,0.10503154,97328.0,97318.0,0.03256264]
[1733447972090,0.10503154,97328.0,97319.0,0.05]
[1733447972298,0.10503154,97328.0,97265.0,0.3249]
[1733447972299,0.10503154,97328.0,97315.0,0.05]
[1733447972748,0.10503154,97328.0,97319.0,0.05]
[1733447974383,0.10503154,97328.0,97320.0,0.1]
[1733447975067,0.10503154,97328.0,97320.0,0.15]
[1733447976637,0.001,97329.0,97325.0,0.05]
[1733447978701,0.001,97329.0,97328.0,0.05]
[1733447985213,0.001,97329.0,97323.0,0.05]
[1733447985373,0.10503154,97328.0,97324.0,0.05]
[1733447986609,0.01023,97329.0,97324.0,0.05]
[1733447986812,0.01023,97329.0,97328.0,0.05]
[1733447986995,0.01023,97329.0,97328.0,0.15212728]
[1733447990914,0.01023,97329.0,97328.0,0.10012728]
[1733447993318,0.01023,97329.0,97328.0,0.33015882]
[1733447993517,0.01023,97329.0,97328.0,0.37913154]
[1733447993933,0.0008648,97340.0,97338.0,0.2017]
[1733447994151,0.0008648,97340.0,97338.0,0.30673154]
[1733447994777,0.0008642,97360.0,97359.0,0.1]
[1733447994975,0.004103,97372.0,97368.0,0.1639]
[1733447995102,0.001,97379.0,97368.0,0.31893154]
[1733447995304,0.00105847,97369.0,97368.0,0.31893154]
[1733447995510,0.00105847,97369.0,97368.0,0.347351]
[1733447995730,0.001,97379.0,97378.0,0.1]
[1733447995934,0.004102,97394.0,97379.0,0.15]
[1733447996138,0.01,97397.0,97388.0,0.173]
[1733447996343,0.01,97397.0,97396.0,0.123]
[1733447996776,0.0008657,97400.0,97398.0,0.1]
[1733447996978,0.0008657,97400.0,97398.0,0.10102644]
[1733447997334,0.0008657,97400.0,97398.0,0.12402644]
[1733448000601,0.0008657,97400.0,97398.0,0.123]